bitfinex-derivatives/quotes_SOLF0:USTF0_20250202
["timestamp","ask_amount","ask_price","bid_price","bid_amount"]
[1738466012528,4.3759,211.62,211.42,34.57344517]
[1738466012831,0.03305616,211.44,211.43,4.7303]
[1738466013029,34.57344517,211.6,211.42,34.57344517]
[1738466013526,4.3759,211.62,211.42,34.57344517]
[1738466013729,34.57344517,211.72,211.5,34.57344517]
[1738466013925,7.6056,211.72,211.54,34.57344517]
[1738466014132,34.57344517,211.8,211.58,34.57344517]
[1738466014435,1.4213,211.79,211.66,4.7251]
[1738466014630,1.5721,211.82,211.66,34.57344517]
[1738466014828,1.5721,211.82,211.7,34.57344517]
[1738466015131,34.57344517,211.9,211.66,34.57344517]
[1738466015334,34.57344517,211.94,211.7,34.57344517]
[1738466015832,0.03078946,211.8,211.76,0.03105582]
[1738466016235,34.57344517,211.86,211.64,34.57344517]
[1738466016532,34.57344517,211.82,211.65,4.7253]
[1738466016725,34.57344517,211.78,211.56,34.57344517]
[1738466016932,34.57344517,211.74,211.56,34.57344517]
[1738466017134,34.57344517,211.74,211.52,34.57344517]
[1738466017525,34.57344517,211.78,211.56,34.57344517]
[1738466017928,34.57344517,211.7,211.52,34.57344517]
[1738466018129,34.57344517,211.66,211.47,34.57344517]
[1738466018327,2.9163,211.65,211.43,34.57344517]
[1738466018527,2.9163,211.65,211.44,0.94589481]
[1738466018728,7.6419,211.65,211.48,4.729]
[1738466018931,2.9163,211.65,211.44,0.94589481]
[1738466019326,2.9163,211.65,211.5,4.7287]
[1738466019529,0.03137563,211.57,211.44,0.94589481]
[1738466019735,1.57437563,211.57,211.35,34.57344517]
[1738466019925,1.57437563,211.57,211.39,34.57344517]
[1738466020130,1.543,211.57,211.39,34.57344517]
[1738466020330,0.03167546,211.44,211.31,34.57344517]
[1738466020530,0.03167546,211.44,211.27,34.57344517]
[1738466020735,2.9967,211.49,211.31,34.57344517]
[1738466021033,34.57344517,211.48,211.31,34.57344517]
[1738466021235,0.03202833,211.38,211.31,34.57344517]
[1738466021627,2.833e-05,211.38,211.31,34.57344517]
[1738466021829,2.833e-05,211.38,211.35,34.57344517]
[1738466022026,4.7282,211.53,211.4,4.7309]
[1738466022233,34.57344517,211.54,211.31,39.55344517]
[1738466022426,34.57344517,211.54,211.35,34.57344517]
[1738466022627,1.4957,211.56,211.35,34.57344517]
[1738466022933,1.4957,211.56,211.39,34.57344517]
[1738466023333,0.03337944,211.48,211.43,0.03415826]
[1738466023731,0.03337944,211.48,211.35,34.57344517]
[1738466024235,1.4957,211.56,211.31,34.57344517]
[1738466024236,1.4957,211.56,211.43,0.03219861]
[1738466024730,1.428e-05,211.44,211.42,4.7304]
[1738466024936,34.57344517,211.66,211.43,34.57344517]
[1738466025130,1.44,211.65,211.54,4.7277]
[1738466025337,1.44,211.65,211.47,0.03149687]
[1738466025533,34.57344517,211.62,211.42,34.57344517]
[1738466025836,1.44,211.65,211.3,34.57344517]
[1738466025837,34.57344517,211.51,211.3,34.57344517]
[1738466026032,34.57344517,211.47,211.26,34.57344517]
[1738466026832,34.57344517,211.47,211.34,0.03265854]
[1738466027032,0.03373623,211.39,211.34,0.03265854]
[1738466027238,4.7318,211.37,211.34,0.03265854]
[1738466027538,1.44,211.38,211.24,34.57344517]
[1738466027736,1.44,211.38,211.33,0.03607251]
[1738466028236,1.44,211.38,211.2,34.57344517]
[1738466028437,1.47073842,211.38,211.2,34.57344517]
[1738466028637,1.44,211.38,211.2,34.57344517]
[1738466029240,1.44,211.38,211.28,4.7336]
[1738466029536,1.44,211.38,211.2,34.57344517]
[1738466029737,0.03562905,211.31,211.27,0.03617092]
[1738466030542,0.03562905,211.31,211.27,4.76987092]
[1738466030738,0.03562905,211.31,211.27,0.03617092]
[1738466033140,0.03562905,211.31,211.16,34.57344517]
[1738466033530,4.7334,211.3,211.21,4.7352]
[1738466033732,2.9981,211.34,211.16,34.57344517]
[1738466033933,2.9981,211.34,211.2,34.57344517]
[1738466034434,0.03418935,211.29,211.2,34.57344517]
[1738466034743,0.03418935,211.29,211.16,34.57344517]
[1738466035235,2.9981,211.34,211.16,34.57344517]
[1738466035639,0.03113434,211.25,211.16,34.57344517]
[1738466035939,0.03113434,211.25,211.19,4.7356]
[1738466036138,0.03113434,211.25,211.16,34.57344517]
[1738466036539,4.76573434,211.25,211.16,39.30974517]
[1738466036843,0.03113434,211.25,211.16,34.57344517]
[1738466037045,0.03113434,211.25,211.2,4.7354]
[1738466037241,3.434e-05,211.25,211.2,34.57344517]
[1738466037742,3.434e-05,211.25,211.16,34.57344517]
[1738466038138,36.01344517,211.38,211.16,34.57344517]
[1738466038439,4.7348,211.23,211.12,34.57344517]
[1738466038845,4.7348,211.23,211.21,0.03110973]
[1738466039043,4.7346,211.25,211.21,0.03110973]
[1738466039341,0.03185565,211.2,211.12,34.57344517]
[1738466039547,4.735,211.23,211.12,39.31054517]
[1738466039846,0.03470995,211.18,211.14,0.03110973]
[1738466040244,1.5605,211.27,211.13,4.737]
[1738466040245,4.7353,211.21,211.13,4.737]
[1738466040445,0.03053339,211.18,211.14,0.03110973]
[1738466040840,4.735,211.23,211.15,4.7365]
[1738466041044,1.4435,211.33,211.16,34.57344517]
[1738466041343,1.4435,211.33,211.23,4.7346]
[1738466041545,1.4843,211.41,211.2,34.57344517]
[1738466042039,4.7326,211.33,211.2,34.57344517]
[1738466042241,34.57344517,211.38,211.2,34.57344517]
[1738466042440,0.03539531,211.33,211.28,0.03432083]
[1738466043149,34.57344517,211.5,211.28,34.607766]
[1738466043548,1.554,211.49,211.28,34.57344517]
[1738466043947,34.57344517,211.46,211.28,34.57344517]
[1738466044144,34.57344517,211.46,211.24,34.57344517]
[1738466044343,0.03518536,211.39,211.35,0.03106435]
[1738466044544,4.732,211.36,211.35,0.03106435]
[1738466044744,34.57344517,211.46,211.28,34.57344517]
[1738466044946,0.03191854,211.38,211.33,0.03000108]
[1738466045348,34.57344517,211.46,211.28,34.57344517]
[1738466045549,1.554,211.49,211.32,34.57344517]
[1738466045854,7.941e-05,211.38,211.33,0.03269798]
[1738466046056,34.57344517,211.46,211.28,34.57344517]
[1738466046459,34.57344517,211.46,211.22,4.86]
[1738466046460,6.283,211.49,211.38,4.7313]
[1738466046757,1.554,211.49,211.32,34.57344517]
[1738466046949,0.03435334,211.46,211.41,0.03514636]
[1738466047853,34.57344517,211.45,211.24,34.57344517]
[1738466048055,34.57344517,211.41,211.24,34.57344517]
[1738466048355,34.57344517,211.45,211.28,34.57344517]
[1738466048655,4.7298,211.46,211.28,34.57344517]
[1738466048852,34.57344517,211.49,211.32,34.57344517]
[1738466049055,8.609e-05,211.39,211.36,34.57344517]
[1738466049253,39.05834517,211.61,211.36,34.95934517]
[1738466049556,34.57344517,211.65,211.46,34.57344517]
[1738466049756,4.7258,211.64,211.5,34.57344517]
[1738466049954,34.57344517,211.69,211.5,34.57344517]
[1738466050458,4.4849,211.73,211.58,34.57344517]
[1738466050658,34.57344517,211.75,211.58,34.57344517]
[1738466050856,6.17153668,211.78,211.66,34.57344517]
[1738466051058,6.17153668,211.78,211.7,34.57344517]
[1738466051257,5.79113668,211.78,211.74,34.57344517]
[1738466051455,44.27944017,211.8,211.74,34.57344517]
[1738466051652,10.71889997,211.8,211.79,34.57344517]
[1738466051855,159.26591415,211.86,211.8,4.7221]
[1738466052059,159.26591415,211.86,211.75,34.60347914]
[1738466052259,74.09457423,211.82,211.75,0.03003397]
[1738466052958,0.03613405,211.82,211.75,0.03003397]
[1738466053162,39.29544517,211.81,211.75,0.03003397]
[1738466053455,34.57344517,211.81,211.75,0.03003397]
[1738466053660,34.57344517,211.81,211.59,34.57344517]
[1738466053853,34.57344517,211.81,211.63,34.57344517]
[1738466054056,4.7216,211.83,211.67,34.57344517]
[1738466054364,3.0143,211.85,211.67,34.57344517]
[1738466054564,3.0143,211.85,211.7,34.57344517]
[1738466054863,1.543,211.94,211.79,34.57344517]
[1738466055164,0.00632817,211.8,211.75,34.60463244]
[1738466055466,34.57344517,212.02,211.76,0.94446543]
[1738466055666,34.57344517,212.02,211.83,34.57344517]
[1738466055865,4.7181,211.98,211.83,34.57344517]
[1738466056058,34.57344517,211.98,211.79,34.57344517]
[1738466056263,4.7178,212.0,211.84,4.721]
[1738466056463,1.5178,212.06,211.87,34.57344517]
[1738466056657,0.03046566,211.91,211.86,0.03059587]
[1738466056964,34.57344517,212.12,211.87,34.57344517]
[1738466057172,34.57344517,212.16,211.98,34.57344517]
[1738466057370,4.7148,212.13,211.98,34.57344517]
[1738466057572,34.57344517,212.16,211.98,34.57344517]
[1738466058073,34.57344517,212.24,212.06,34.57344517]
[1738466058364,0.0329488,212.09,212.06,34.57344517]
[1738466058563,173.4666704,212.41,212.08,34.57344517]
[1738466058564,34.57344517,212.34,212.08,34.57344517]
[1738466058768,34.57344517,212.38,212.17,34.57344517]
[1738466058969,1.4225,212.4,212.25,34.57344517]
[1738466059169,4.7093,212.38,212.25,34.57344517]
[1738466059366,34.57344517,212.48,212.29,34.57344517]
[1738466059671,1.4225,212.51,212.33,34.57344517]
[1738466059869,1.4225,212.51,212.37,34.57344517]
[1738466060165,0.03296579,212.41,212.37,34.57344517]
[1738466060372,1.4225,212.51,212.37,34.57344517]
[1738466060572,3.0733,212.58,212.41,34.57344517]
[1738466061172,0.03489931,212.52,212.41,34.57344517]
[1738466061370,0.03489931,212.52,212.45,34.57344517]
[1738466061571,0.03489931,212.52,212.47,0.03214434]
[1738466062075,1.4225,212.62,212.49,34.57344517]
[1738466062265,0.03400195,212.52,212.49,34.57344517]
[1738466062470,3.0272,212.73,212.49,34.57344517]
[1738466062671,34.57344517,212.68,212.49,34.57344517]
[1738466062973,4.7066,212.5,212.41,34.57344517]
[1738466063471,34.57344517,212.55,212.37,34.57344517]
[1738466063667,34.57344517,212.51,212.33,34.57344517]
[1738466063869,0.02976301,212.48,212.43,0.03468505]
[1738466065468,34.57344517,212.72,212.45,34.57344517]
[1738466065678,34.57344517,212.72,212.53,34.57344517]
[1738466065879,34.57344517,212.76,212.57,34.57344517]
[1738466066181,34.57344517,212.68,212.49,34.57344517]
[1738466066370,4.705,212.57,212.49,34.57344517]
[1738466066571,34.57344517,212.64,212.45,34.57344517]
[1738466066870,4.705,212.57,212.56,0.03503199]
[1738466067076,0.03064144,212.61,212.56,0.03503199]
[1738466067280,3.043,212.63,212.56,0.03503199]
[1738466067475,4.7049,212.58,212.56,0.03503199]
[1738466067876,0.03240545,212.61,212.53,34.57344517]
[1738466068379,4.4275,212.73,212.53,34.57344517]
[1738466068574,4.7052,212.57,212.53,34.57344517]
[1738466068780,4.4275,212.73,212.49,34.57344517]
[1738466068981,34.57344517,212.71,212.49,34.57344517]
[1738466069177,4.73909429,212.57,212.53,0.03461603]
[1738466069375,138.61047264,212.84,212.53,34.6080612]
[1738466069578,2.26116538,212.83,212.57,34.57344517]
[1738466069781,34.57344517,212.77,212.57,34.57344517]
[1738466070178,34.57344517,212.81,212.57,34.57344517]
[1738466070378,4.7027,212.68,212.61,34.57344517]
[1738466070582,34.57344517,212.81,212.61,34.57344517]
[1738466070781,1.4473,212.83,212.67,0.03002101]
[1738466070782,0.03193637,212.71,212.67,0.03002101]
[1738466071277,4.7034,212.65,212.57,34.57344517]
[1738466071479,34.57344517,212.77,212.57,34.57344517]
[1738466071781,4.7025,212.68,212.67,8.645e-05]
[1738466072081,0.03075213,212.71,212.67,8.645e-05]
[1738466072382,4.7009,212.76,212.69,34.57344517]
[1738466072585,1.4473,212.83,212.73,34.57344517]
[1738466073282,4.6995,212.82,212.77,34.57344517]
[1738466073482,1.4422,212.84,212.77,34.57344517]
[1738466073783,4.6995,212.82,212.77,34.60563339]
[1738466073980,0.0316848,212.82,212.77,34.60563339]
[1738466074187,0.0316848,212.82,212.77,0.03218822]
[1738466074388,4.7002,212.79,212.77,0.03218822]
[1738466074582,0.0316848,212.82,212.63,34.57344517]
[1738466074984,34.57344517,212.81,212.58,34.57344517]
[1738466075184,34.57344517,212.77,212.48,4.8]
[1738466075380,1.4484,212.76,212.48,4.8]
[1738466075687,34.57344517,212.81,212.61,34.57344517]
[1738466075885,0.0345072,212.66,212.62,0.03466913]
[1738466076185,1.4484,212.8,212.65,34.57344517]
[1738466076387,1.4422,212.84,212.72,34.57344517]
[1738466076693,4.7007,212.77,212.72,34.57344517]
[1738466076985,1.4422,212.84,212.72,34.57344517]
[1738466077183,4.6998,212.81,212.72,34.57344517]
[1738466077379,0.03603789,212.77,212.76,34.57344517]
[1738466077583,0.03603789,212.77,212.72,34.60900675]
[1738466077780,0.03603789,212.77,212.72,34.57344517]
[1738466077984,0.03603789,212.77,212.68,34.57344517]
[1738466078382,0.03603789,212.77,212.72,0.03513614]
[1738466078587,34.57344517,212.81,212.6,34.57344517]
[1738466078989,0.02978263,212.77,212.64,34.57344517]
[1738466079391,1.4994,212.87,212.68,34.57344517]
[1738466079593,1.4994,212.87,212.72,34.57344517]
[1738466079887,0.03306895,212.8,212.75,0.03045488]
[1738466080392,0.03306895,212.8,212.76,34.57344517]
[1738466080587,0.03306895,212.8,212.75,0.03045488]
[1738466080787,4.7006,212.77,212.75,0.03045488]
[1738466080992,0.03306895,212.8,212.75,0.03045488]
[1738466081687,4.7006,212.77,212.75,0.03045488]
[1738466081896,0.03306895,212.8,212.75,0.03045488]
[1738466082589,0.03306895,212.8,212.52,34.57344517]
[1738466082590,14.07,212.75,212.19,34.57344517]
[1738466082788,34.57344517,212.35,212.22,4.7126]
[1738466083096,34.57344517,212.32,212.08,275.52637171]
[1738466083389,34.57344517,212.32,212.08,128.52637171]
[1738466083595,34.57344517,212.32,212.1,34.57344517]
[1738466083894,2.605e-05,212.22,212.21,4.713]
[1738466084188,34.57344517,212.45,212.21,107.21]
[1738466084386,34.57344517,212.49,212.34,4.71]
[1738466084592,6.1279,212.53,212.39,34.57344517]
[1738466084991,1.4381,212.54,212.39,34.57344517]
[1738466085192,6.144,212.54,212.39,34.57344517]
[1738466085394,1.4381,212.54,212.39,34.57344517]
[1738466085595,4.74004882,212.49,212.44,0.03181776]
[1738466085791,0.03314882,212.49,212.44,0.03181776]
[1738466086593,4.7076,212.45,212.35,0.94184129]
[1738466086792,0.03314882,212.49,212.35,0.94184129]
[1738466086986,1.4381,212.54,212.42,34.57344517]
[1738466087191,4.7054,212.56,212.42,34.57344517]
[1738466087496,1.4218,212.61,212.46,34.57344517]
[1738466087692,1.4218,212.61,212.42,34.57344517]
[1738466087989,1.4218,212.61,212.51,0.03125399]
[1738466087990,4.7058,212.54,212.51,0.03125399]
[1738466088189,0.03306891,212.56,212.51,0.03125399]
[1738466089291,0.03306891,212.56,212.38,34.57344517]
[1738466089493,34.57344517,212.55,212.35,0.94184129]
[1738466089688,4.7066,212.5,212.35,0.94184129]
[1738466089990,1.4584,212.54,212.38,34.57344517]
[1738466090594,0.03064445,212.48,212.44,0.03572682]
[1738466091286,4.73774445,212.48,212.44,0.03572682]
[1738466091595,0.03064445,212.48,212.44,0.03572682]
[1738466091890,4.7072,212.47,212.44,0.03572682]
[1738466092097,0.03064445,212.48,212.44,0.03572682]
[1738466094494,4.7076,212.46,212.44,0.03572682]
[1738466094694,0.03064445,212.48,212.35,0.94184129]
[1738466094995,34.57344517,212.47,212.35,0.94184129]
[1738466095199,34.57344517,212.43,212.35,0.94184129]
[1738466095392,2.9364,212.46,212.25,34.57344517]
[1738466095789,4.7093,212.38,212.28,4.7113]
[1738466095991,0.03502886,212.38,212.19,34.57344517]
[1738466096190,1.5048,212.37,212.19,34.57344517]
[1738466096397,2.9364,212.46,212.28,34.57344517]
[1738466096797,34.57344517,212.39,212.2,0.94250706]
[1738466096994,2.9364,212.46,212.2,0.94250706]
[1738466096995,34.57344517,212.35,212.2,0.94250706]
[1738466097199,1.5048,212.34,212.2,0.94250706]
[1738466097498,4.7114,212.28,212.27,0.03104753]
[1738466097688,0.03487993,212.32,212.2,0.94250706]
[1738466098088,4.7122,212.25,212.2,0.94250706]
[1738466098289,4.7122,212.25,212.16,4.714]
[1738466098693,4.7122,212.25,212.15,34.57344517]
[1738466098899,1.5352,212.33,212.2,4.7131]
[1738466099091,0.03010268,212.23,212.19,34.57344517]
[1738466099397,1.5048,212.34,212.22,34.57344517]
[1738466099597,1.5352,212.4,212.26,34.57344517]
[1738466099999,1.5352,212.4,212.22,34.57344517]
[1738466100200,34.57344517,212.37,212.18,34.57344517]
[1738466100401,34.57344517,212.33,212.14,34.57344517]
[1738466100602,34.60645316,212.33,212.14,34.57344517]
[1738466100797,34.60645316,212.33,212.1,39.28874517]
[1738466101101,34.57344517,212.33,212.14,34.57344517]
[1738466101303,34.57344517,212.37,212.18,34.57344517]
[1738466101902,34.57344517,212.33,212.14,34.57344517]
[1738466102197,0.03155947,212.3,212.25,0.03440866]
[1738466102704,34.57344517,212.29,212.08,34.57344517]
[1738466102894,0.03194455,212.3,212.17,34.57344517]
[1738466103098,0.03194455,212.3,212.25,0.031554]
[1738466103299,4.7117,212.27,212.13,34.57344517]
[1738466103604,34.57344517,212.29,212.09,34.57344517]
[1738466103801,34.57344517,212.29,212.01,93.22]
[1738466103802,4.7119,212.26,212.18,4.7136]
[1738466103999,1.4479,212.36,212.17,34.57344517]
[1738466104299,4.7109,212.31,212.18,4.7135]
[1738466104600,34.57344517,212.29,212.09,34.57344517]
[1738466104804,34.57344517,212.17,211.92,93.26]
[1738466105503,1.4798,212.28,212.09,34.57344517]
[1738466106103,4.7137,212.18,212.09,39.28894517]
[1738466106302,1.4798,212.28,212.09,34.57344517]
[1738466106303,0.03146227,212.21,212.09,34.57344517]
[1738466106502,0.03146227,212.21,212.16,0.03124665]
[1738466106705,34.57344517,212.21,212.0,34.57344517]
[1738466106898,34.57344517,212.17,211.98,0.94348523]
[1738466107803,34.57344517,212.17,212.01,4.7174]
[1738466108101,34.57344517,212.17,211.98,0.94348523]
[1738466108310,1.5334,212.2,212.0,34.57344517]
[1738466108508,0.03346268,212.11,212.07,0.02695186]
[1738466108804,4.7158,212.09,212.07,5.186e-05]
[1738466109106,34.57344517,212.12,211.98,0.94348523]
[1738466109411,41.48054517,212.19,211.98,0.94348523]
[1738466109412,4.7177,212.0,211.98,0.94348523]
[1738466109902,34.57344517,212.04,211.87,4.7204]
[1738466110104,0.03254076,212.01,211.84,34.57344517]
[1738466110308,34.57344517,212.0,211.8,34.57344517]
[1738466110510,4.718,211.99,211.88,34.57344517]
[1738466110710,3.0714,212.03,211.92,34.57344517]
[1738466110904,1.5011,212.07,211.97,4.7183]
[1738466111102,5.524e-05,212.0,211.96,34.57344517]
[1738466111302,3.0714,212.18,211.96,34.57344517]
[1738466111507,3.0714,212.18,212.05,34.57344517]
[1738466111911,3.0714,212.18,212.01,34.57344517]
[1738466112105,4.7169,212.04,211.93,34.57344517]
[1738466112409,34.57344517,212.12,211.93,34.57344517]
[1738466112601,0.03253992,212.01,211.96,0.0306071]
[1738466113003,34.57344517,212.04,211.85,39.29434517]
[1738466113203,34.57344517,212.04,211.81,34.57344517]
[1738466113405,0.03492792,212.01,211.81,34.57344517]
[1738466113813,34.57344517,212.0,211.81,34.57344517]
[1738466114107,1.4482,211.99,211.64,181.57344517]
[1738466114304,34.57344517,211.92,211.72,34.57344517]
[1738466114701,4.7213,211.84,211.73,4.7235]
[1738466114907,0.03163784,211.9,211.72,34.57344517]
[1738466115109,34.57344517,211.96,211.8,34.57344517]
[1738466115309,4.7211,211.85,211.76,34.57344517]
[1738466115510,0.03547096,211.83,211.76,34.57344517]
[1738466115812,0.03547096,211.83,211.76,39.29624517]
[1738466116014,0.03547096,211.83,211.76,34.57344517]
[1738466116412,0.03547096,211.83,211.8,34.57344517]
[1738466116714,0.03547096,211.83,211.75,34.57344517]
[1738466116908,1.4482,211.99,211.79,39.29564517]
[1738466117109,34.57344517,211.96,211.75,34.57344517]
[1738466117310,0.03399814,211.81,211.75,34.57344517]
[1738466117605,0.03399814,211.81,211.71,34.57344517]
[1738466117606,4.722,211.81,211.71,34.57344517]
[1738466117805,34.57344517,211.88,211.67,34.57344517]
[1738466118004,34.57344517,211.88,211.67,39.29834517]
[1738466118005,4.7227,211.78,211.67,39.29834517]
[1738466118205,0.03389959,211.8,211.67,39.29834517]
[1738466118410,4.7213,211.84,211.75,34.57344517]
[1738466118614,3.0275,211.87,211.75,34.57344517]
[1738466118809,0.03388994,211.76,211.71,34.57344517]
[1738466119210,4.722,211.81,211.71,34.57344517]
[1738466119407,3.0275,211.87,211.71,34.57344517]
[1738466119615,1.4771,211.95,211.79,34.57344517]
[1738466119813,1.4871,211.99,211.87,34.57344517]
[1738466120015,4.7206,211.87,211.79,34.57344517]
[1738466120412,34.57344517,211.96,211.79,34.57344517]
[1738466120619,34.57344517,211.92,211.71,34.57344517]
[1738466120915,34.57344517,211.92,211.53,181.57344517]
[1738466120916,34.57344517,211.88,211.67,34.57344517]
[1738466121115,4.7217,211.82,211.69,4.7245]
[1738466121317,34.57344517,211.88,211.71,34.57344517]
[1738466121510,34.57344517,211.88,211.67,34.57344517]
[1738466121711,34.57344517,211.8,211.62,34.57344517]
[1738466121913,34.57344517,211.84,211.62,34.57344517]
[1738466122114,1.4394,211.85,211.66,34.57344517]
[1738466122418,0.03621485,211.75,211.68,4.7246]
[1738466122620,0.03621485,211.75,211.7,34.57344517]
[1738466122814,0.03621485,211.75,211.7,39.29764517]
[1738466123117,1.4394,211.85,211.7,34.57344517]
[1738466123319,0.03392746,211.75,211.7,34.57344517]
[1738466123617,1.4394,211.85,211.64,34.57344517]
[1738466124019,0.03591876,211.75,211.73,39.29704517]
[1738466124220,2.9802,211.91,211.73,34.57344517]
[1738466124617,2.9802,211.91,211.64,35.51844611]
[1738466124817,34.57344517,211.85,211.64,35.51844611]
[1738466125319,34.57344517,211.77,211.64,0.94500094]
[1738466125521,4.7237,211.73,211.72,7.487e-05]
[1738466125716,39.29714517,211.73,211.72,7.487e-05]
[1738466125920,34.57344517,211.73,211.64,0.94500094]
[1738466126121,4.7254,211.65,211.64,9.4e-07]
[1738466126616,2.9408,211.75,211.64,9.4e-07]
[1738466126816,34.57344517,211.83,211.65,34.57344517]
[1738466127017,1.4656,211.82,211.65,34.57344517]
[1738466127320,0.03155063,211.76,211.69,34.57344517]
[1738466127514,0.03155063,211.76,211.73,34.57344517]
[1738466127821,0.03155063,211.76,211.74,4.7232]
[1738466128117,0.03155063,211.76,211.73,34.57344517]
[1738466128523,0.03155063,211.76,211.74,4.7234]
[1738466129224,1.4656,211.9,211.73,34.57344517]
[1738466129425,34.57344517,211.87,211.68,34.57344517]
[1738466129628,4.7215,211.83,211.73,0.03555663]
[1738466129826,34.57344517,211.83,211.73,0.03555663]
[1738466130126,4.7236,211.74,211.6,34.57344517]
[1738466130324,34.57344517,211.79,211.63,4.7258]
[1738466130525,0.03389367,211.76,211.71,0.0312407]
[1738466130924,3.0898,211.82,211.71,0.0312407]
[1738466131126,4.6157,211.82,211.71,0.0312407]
[1738466131331,4.7238,211.73,211.71,0.0312407]
[1738466131820,0.03041134,211.76,211.71,0.0312407]
[1738466131821,4.7233,211.75,211.71,0.0312407]
[1738466132027,0.03041134,211.76,211.71,0.0312407]
[1738466132427,4.7235,211.74,211.71,0.0312407]
[1738466132633,0.03041134,211.76,211.71,0.0312407]
[1738466133029,4.7233,211.75,211.71,0.0312407]
[1738466133328,0.03041134,211.76,211.71,0.0312407]
[1738466133534,4.7238,211.73,211.71,0.0312407]
[1738466134531,4.7253,211.66,211.6,34.57344517]
[1738466134734,34.57344517,211.74,211.56,34.57344517]
[1738466135329,34.57344517,211.74,211.59,4.7267]
[1738466135527,34.57344517,211.74,211.52,34.57344517]
[1738466135729,34.57344517,211.74,211.52,39.30164517]
[1738466135926,0.03298543,211.69,211.52,39.30164517]
[1738466136131,1.58428543,211.69,211.52,39.30164517]
[1738466136332,1.5513,211.69,211.52,39.30164517]
[1738466136533,0.03595704,211.63,211.5,93.44]
[1738466136830,0.03595704,211.63,211.48,34.57344517]
[1738466137037,34.57344517,211.66,211.44,58.11500486]
[1738466137242,0.03126869,211.58,211.44,58.11500486]
[1738466137433,4.7277,211.55,211.44,58.11500486]
[1738466137628,34.57344517,211.66,211.44,58.11500486]
[1738466138138,0.03542805,211.52,211.44,34.57344517]
[1738466138439,2.9877,211.69,211.48,34.57344517]
[1738466138634,2.9877,211.69,211.56,34.57344517]
[1738466138835,4.7258,211.64,211.56,34.57344517]
[1738466139031,2.9877,211.69,211.56,34.57344517]
[1738466139235,6.161,211.69,211.6,4.7265]
[1738466139436,1.4364,211.69,211.56,34.57344517]
[1738466139637,1.4364,211.69,211.52,34.57344517]
[1738466139832,1.4364,211.69,211.57,34.57344517]
[1738466140042,0.03240119,211.65,211.6,0.03625325]
[1738466140237,0.03240119,211.65,211.57,34.57344517]
[1738466140644,0.03240119,211.65,211.6,0.03017597]
[1738466140938,0.03240119,211.65,211.6,4.75657597]
[1738466141141,0.03240119,211.65,211.6,0.03017597]
[1738466141538,0.03240119,211.65,211.62,4.7261]
[1738466141941,0.03240119,211.65,211.61,34.57344517]
[1738466142137,0.03240119,211.65,211.6,0.03017597]
[1738466142742,4.7263,211.62,211.6,0.03017597]
[1738466142942,0.03240119,211.65,211.6,0.03017597]
[1738466143751,0.03240119,211.65,211.62,34.57344517]
[1738466144050,0.03240119,211.65,211.62,39.29944517]
[1738466144745,0.03240119,211.65,211.6,0.03017597]
[1738466145249,4.726,211.63,211.6,0.03017597]
[1738466145554,0.03240119,211.65,211.6,0.03017597]
[1738466145848,4.7262,211.62,211.6,0.03017597]
[1738466146046,0.03240119,211.65,211.5,34.57344517]
[1738466146249,34.57344517,211.64,211.46,163.09981688]
[1738466146552,1.5282,211.63,211.46,163.09981688]
[1738466146754,4.7279,211.55,211.47,4.7294]
[1738466147152,1.4747,211.62,211.47,4.7294]
[1738466147451,4.7285,211.52,211.46,163.09981688]
[1738466147642,0.03314872,211.53,211.46,163.09981688]
[1738466148150,0.03314872,211.53,211.46,34.57344517]
[1738466148545,4.76134872,211.53,211.46,34.57344517]
[1738466148953,0.03314872,211.53,211.46,34.57344517]
[1738466150043,4.7284,211.52,211.46,34.57344517]
[1738466150244,0.03314872,211.53,211.42,34.57344517]
[1738466150645,3.0029,211.63,211.42,34.57344517]
[1738466150845,0.03613303,211.5,211.42,34.57344517]
[1738466151249,3.0029,211.63,211.42,34.57344517]
[1738466151449,0.03536145,211.48,211.42,34.57344517]
[1738466151958,3.0029,211.63,211.42,34.57344517]
[1738466152149,0.03472014,211.47,211.42,34.57344517]
[1738466152346,4.7293,211.48,211.42,39.30394517]
[1738466152551,3.0029,211.63,211.42,34.57344517]
[1738466152750,0.03252743,211.47,211.42,34.57344517]
[1738466153151,1.5159,211.59,211.42,34.57344517]
[1738466153348,0.03626133,211.47,211.42,34.57344517]
[1738466153552,4.76576133,211.47,211.42,34.57344517]
[1738466153755,1.5159,211.59,211.42,34.57344517]
[1738466153951,0.03392088,211.47,211.38,34.57344517]
[1738466154452,4.98,211.55,211.34,34.57344517]
[1738466154649,4.7306,211.42,211.36,4.7319]
[1738466154849,0.03168408,211.45,211.36,4.7319]
[1738466155251,0.03168408,211.45,211.34,39.30574517]
[1738466155554,0.03168408,211.45,211.34,34.57344517]
[1738466155749,4.7306,211.42,211.34,39.30574517]